Workbook

Sheet PERÍODO
B1: HORÁRIO DA TURMA
B2: SEMESTRE DE OUTONO
C3: HORA DE INÍCIO | D3: DURAÇÃO | F3: ANO
C4: 09:00:00 | D4: 60 | E4: (Em Minutos)
B5: HORA | C5: SEG | D5: TER | E5: QUA | F5: QUI | G5: SEX | H5: SÁB | I5: DOM
B6: =HoraDeInício+TIME(0,(ROW(A1)-1)*Duração,0) -> 09:00:00 | C6: Pequeno-almoço | D6: Pequeno-almoço | E6: Pequeno-almoço | F6: Pequeno-almoço | G6: Pequeno-almoço
B7: 10:00:00 | C7: Negócios: Palestra Edifício B, Sala 256
B8: 11:00:00 | F8: Física: Laboratório Edifício J, Sala 309
B9: 12:00:00
B10: 13:00:00
B11: 14:00:00
B12: 15:00:00
B13: 16:00:00
B14: 17:00:00
B15: 18:00:00
B16: 19:00:00
B17: 20:00:00
B18: 21:00:00
B19: 22:00:00
B20: 23:00:00
B21: 1
B22: 1.041666667
B23: 1.083333333
B24: 1.125
B25: 1.166666667
B26: 1.208333333
B27: 1.25
B28: 1.291666667
B29: 1.333333333

Sheet CRÉDITOS
B1: FACULDADE
B2: PLANEADOR DE CRÉDITOS
B3: Título do Curso | C3: =Ano -> ANO
B4: PROGRESSO GERAL | D4: PROGRESSO GERAL
B5: =AVERAGE(Disciplinas[NOTA]) -> 3.5 | C5: =IFERROR(TEXT(AVERAGEIF(Disciplinas[CONCLUÍDA],"Sim",Disciplinas[NOTA]),"0,00"),"0,00")&" GPA Atual" -> 3,50 GPA Atual | D5: =COUNTIF(Disciplinas[CONCLUÍDA],"Sim")/COUNTA(Disciplinas[TÍTULO DA DISCIPLINA]) -> 0.6666666667 | E5: =TEXT(COUNTIF(Disciplinas[CONCLUÍDA],"Sim")/COUNTA(Disciplinas[TÍTULO DA DISCIPLINA]),"0%")&" Concluído" -> 67% Concluído
B6: Nota: o seguinte resumo de créditos é propagado automaticamente pelas suas entradas na tabela Disciplinas abaixo
B7: REQUISITO | C7: TOTAL DE CRÉDITOS | D7: OBTIDOS | E7: NECESSÁRIOS
B8: Disciplinas Principais | C8: =IF(SUMIF(Disciplinas[REQUISITO],CRÉDITOS!$B8,Disciplinas[CRÉDITOS])=0,"0",SUMIF(Disciplinas[REQUISITO],CRÉDITOS!$B8,Disciplinas[CRÉDITOS])) -> 4 | D8: =SUMIFS(Disciplinas[CRÉDITOS],Disciplinas[REQUISITO],CRÉDITOS!$B8,Disciplinas[CONCLUÍDA],"Sim") -> 4 | E8: =SUMIF(Disciplinas[REQUISITO],CRÉDITOS!$B8,Disciplinas[CRÉDITOS])-SUMIFS(Disciplinas[CRÉDITOS],Disciplinas[REQUISITO],CRÉDITOS!$B8,Disciplinas[CONCLUÍDA],"Sim") -> 0
B9: Disciplinas Secundárias | C9: =IF(SUMIF(Disciplinas[REQUISITO],CRÉDITOS!$B9,Disciplinas[CRÉDITOS])=0,"0",SUMIF(Disciplinas[REQUISITO],CRÉDITOS!$B9,Disciplinas[CRÉDITOS])) -> 3 | D9: =SUMIFS(Disciplinas[CRÉDITOS],Disciplinas[REQUISITO],CRÉDITOS!$B9,Disciplinas[CONCLUÍDA],"Sim") -> 0 | E9: =SUMIF(Disciplinas[REQUISITO],CRÉDITOS!$B9,Disciplinas[CRÉDITOS])-SUMIFS(Disciplinas[CRÉDITOS],Disciplinas[REQUISITO],CRÉDITOS!$B9,Disciplinas[CONCLUÍDA],"Sim") -> 3
B10: Disciplinas Opcionais | C10: =IF(SUMIF(Disciplinas[REQUISITO],CRÉDITOS!$B10,Disciplinas[CRÉDITOS])=0,"0",SUMIF(Disciplinas[REQUISITO],CRÉDITOS!$B10,Disciplinas[CRÉDITOS])) -> 2 | D10: =SUMIFS(Disciplinas[CRÉDITOS],Disciplinas[REQUISITO],CRÉDITOS!$B10,Disciplinas[CONCLUÍDA],"Sim") -> 2 | E10: =SUMIF(Disciplinas[REQUISITO],CRÉDITOS!$B10,Disciplinas[CRÉDITOS])-SUMIFS(Disciplinas[CRÉDITOS],Disciplinas[REQUISITO],CRÉDITOS!$B10,Disciplinas[CONCLUÍDA],"Sim") -> 0
B11: Estudos Gerais | C11: =IF(SUMIF(Disciplinas[REQUISITO],CRÉDITOS!$B11,Disciplinas[CRÉDITOS])=0,"0",SUMIF(Disciplinas[REQUISITO],CRÉDITOS!$B11,Disciplinas[CRÉDITOS])) -> 0 | D11: =SUMIFS(Disciplinas[CRÉDITOS],Disciplinas[REQUISITO],CRÉDITOS!$B11,Disciplinas[CONCLUÍDA],"Sim") -> 0 | E11: =SUMIF(Disciplinas[REQUISITO],CRÉDITOS!$B11,Disciplinas[CRÉDITOS])-SUMIFS(Disciplinas[CRÉDITOS],Disciplinas[REQUISITO],CRÉDITOS!$B11,Disciplinas[CONCLUÍDA],"Sim") -> 0
B12: Total | C12: =SUBTOTAL(109,CRÉDITOS!$C$8:$C$11) -> 9 | D12: =SUBTOTAL(109,CRÉDITOS!$D$8:$D$11) -> 6 | E12: =SUBTOTAL(109,CRÉDITOS!$E$8:$E$11) -> 3
B13: Disciplinas
B14: TÍTULO DA DISCIPLINA | C14: N.º DA DISCIPLINA | D14: REQUISITO | E14: CRÉDITOS | F14: CONCLUÍDA | G14: NOTA | H14: SEMESTRE
B15: Disciplina 1 | C15: Número | D15: Disciplinas Principais | E15: 4 | F15: Sim | G15: 4.0 | H15: Semestre 1
B16: Disciplina 2 | C16: Número | D16: Disciplinas Secundárias | E16: 3 | F16: Não | H16: Semestre 1
B17: Disciplina 3 | C17: Número | D17: Disciplinas Opcionais | E17: 2 | F17: Sim | G17: 3.0 | H17: Semestre 1

Sheet ORÇAMENTO
B1: =Faculdade -> FACULDADE
B2: CONTROLADOR DE ORÇAMENTO
B3: O Meu Orçamento | C3: =Ano -> ANO
B4: PERCENTAGEM DE RENDIMENTOS GASTOS
B5: =DESPESAS_MENSAIS_LÍQUIDAS/RENDIMENTOS_MENSAIS_LÍQUIDOS -> 75%
B6: =B5 -> 0.7454545455
B7: RENDIMENTOS MENSAIS LÍQUIDOS | C7: DESPESAS MENSAIS LÍQUIDAS | D7: SALDO
B8: =C10 -> 2,750 € | C8: ='DESPESAS MENSAIS LÍQUIDAS'!C4+'DESPESAS SEMESTRAIS'!D4 -> 2,050 € | D8: =RENDIMENTOS_MENSAIS_LÍQUIDOS-DESPESAS_MENSAIS_LÍQUIDAS -> 700 €
B9: Meses no semestre | C9: 4
B10: RENDIMENTOS MENSAIS | C10: =SUM(RendimentoMensal[MONTANTE]) -> 2,750 €
B11: ITEM | C11: MONTANTE
B12: Rendimentos fixos | C12: 1,500 €
B13: Ajuda financeira | C13: 500 €
B14: Empréstimos | C14: 500 €
B15: Outros rendimentos | C15: 250 €

Sheet DESPESAS MENSAIS LÍQUIDAS
B1: =Faculdade -> FACULDADE
B2: CONTROLADOR DE ORÇAMENTO
B3: Despesas Mensais | C3: =Ano -> ANO
B4: DESPESAS MENSAIS | C4: =SUM(DespesasMensais[MONTANTE]) -> 1,675 €
B5: ITEM | C5: MONTANTE
B6: Renda | C6: 300 €
B7: Serviços públicos | C7: 50 €
B8: Telemóvel | C8: 75 €
B9: Compras | C9: 250 €
B10: Despesas com automóvel | C10: 50 €
B11: Empréstimos escolares | C11: 500 €
B12: Cartões de crédito | C12: 275 €
B13: Seguro | C13: 125 €
B14: Lazer | C14: 50 €
B15: Diversos | C15: 0 €

Sheet DESPESAS SEMESTRAIS
B1: =Faculdade -> FACULDADE
B2: CONTROLADOR DE ORÇAMENTO
B3: Despesas Semestrais | C3: =Ano -> ANO
B4: DESPESAS SEMESTRAIS (Total/Por Mês) | C4: =SUM(DespesasSemestrais[MONTANTE]) -> 1,500 € | D4: =SUM(DespesasSemestrais[POR MÊS]) -> 375 €
B5: ITEM | C5: MONTANTE | D5: POR MÊS
B6: Propinas | C6: 750 € | D6: =DespesasSemestrais[[#This Row],[MONTANTE]]/Meses_no_semestre -> 188 €
B7: Despesas de laboratório | C7: 250 € | D7: =DespesasSemestrais[[#This Row],[MONTANTE]]/Meses_no_semestre -> 63 €
B8: Livros | C8: 500 € | D8: =DespesasSemestrais[[#This Row],[MONTANTE]]/Meses_no_semestre -> 125 €
B9: Cauções | C9: 0 € | D9: =DespesasSemestrais[[#This Row],[MONTANTE]]/Meses_no_semestre -> 0 €
B10: Transportes | C10: 0 € | D10: =DespesasSemestrais[[#This Row],[MONTANTE]]/Meses_no_semestre -> 0 €
B11: Outras despesas | C11: 0 € | D11: =DespesasSemestrais[[#This Row],[MONTANTE]]/Meses_no_semestre -> 0 €

Sheet LIVROS
B1: =Faculdade -> FACULDADE
B2: CONTROLADOR DE LIVROS
B3: Lista de Livros
B4: TÍTULO | C4: AUTOR | D4: DISCIPLINA | E4: ONDE COMPRAR? | F4: ISBN | G4: NOTAS
B5: Título do Livro | C5: Autor | D5: Disciplina | E5: Localização | F5: Número
B6: Título do Livro | C6: Autor | D6: Disciplina | E6: Localização | F6: Número
B7: Título do Livro | C7: Autor | D7: Disciplina | E7: Localização | F7: Número
